bitfinex-derivatives/quotes_ETHF0:USTF0_20250316
["timestamp","ask_amount","ask_price","bid_price","bid_amount"]
[1742141679554,4.6004,1911.2,1911.1,1.04696713]
[1742141679754,5.64694,1911.2,1911.1,0.00036713]
[1742141680850,5.64694,1911.2,1910.6,0.56653728]
[1742141680851,15.58679,1911.2,1910.6,0.56653728]
[1742141681063,1.04681,1910.8,1910.5,1.04692]
[1742141681360,5.66045,1910.7,1910.5,1.04689]
[1742141681561,1.4058,1910.7,1910.3,1.4191]
[1742141681750,1.4058,1910.7,1910.6,1.04687]
[1742141682963,4.6136,1910.7,1910.5,0.00785813]
[1742141683163,4.6136,1910.7,1910.5,1.05474813]
[1742141683364,5.66044,1910.7,1910.5,1.05474813]
[1742141683560,1.04687,1910.6,1910.5,0.00785813]
[1742141683759,2.50167,1910.6,1910.5,0.00785813]
[1742141683952,1.4548,1910.6,1910.5,1.05478813]
[1742141685372,21.5921953,1910.7,1910.6,1.04687]
[1742141685556,21.5921953,1910.7,1910.6,2.44747]
[1742141685959,18.3843953,1910.7,1910.6,2.44747]
[1742141686864,19.4312453,1910.7,1910.5,6.73176813]
[1742141687070,1.3555,1910.6,1910.5,6.73176813]
[1742141687261,1.04687,1910.6,1910.5,5.68485813]
[1742141687461,3.2078,1910.6,1910.5,0.00785813]
[1742141687662,1.04687,1910.6,1910.5,0.00785813]
[1742141687865,5.66007,1910.6,1910.5,0.00785813]
[1742141688060,1.4054,1910.6,1910.5,1.05478813]
[1742141688572,18.3843953,1910.7,1910.6,1.04687]
[1742141688967,19.7897953,1910.7,1910.6,1.04687]
[1742141689167,20.8366453,1910.7,1910.5,1.05476813]
[1742141689366,19.7897953,1910.7,1910.6,1.04687]
[1742141689965,18.3843953,1910.7,1910.6,1.04687]
[1742141690166,18.36823232,1910.7,1910.6,10.61077]
[1742141690369,17.21711232,1910.7,1910.6,14.38347198]
[1742141690671,17.21711232,1910.7,1910.6,11.17567198]
[1742141691476,17.21711232,1910.7,1910.6,2.50477]
[1742141691972,17.21711232,1910.7,1910.6,5.57035447]
[1742141692170,12.24609214,1911.0,1910.6,14.36715447]
[1742141692369,12.24609214,1911.0,1910.9,1.04671]
[1742141695475,12.24609214,1911.0,1910.9,1.61340417]
[1742141695678,12.24609214,1911.0,1910.9,1.04671]
[1742141696276,12.24609214,1911.0,1910.9,1.61325432]
[1742141696473,12.24609214,1911.0,1910.9,1.61329978]
[1742141698072,12.24609214,1911.0,1910.9,1.04671]
[1742141698378,12.24609214,1911.0,1910.9,1.61340781]
[1742141701078,12.24609214,1911.0,1910.9,4.82120781]
[1742141701279,12.24609214,1911.0,1910.9,1.61340781]
[1742141701878,13.29274214,1911.0,1910.9,0.56669781]
[1742141702078,13.29274214,1911.0,1910.5,0.00785813]
[1742141702079,16.18988214,1911.0,1910.5,0.00785813]
[1742141702381,3.2078,1910.7,1910.6,1.04685]
[1742141702577,3.2078,1910.7,1910.5,0.00785813]
[1742141702578,22.65099214,1911.0,1910.7,1.04677]
[1742141702781,1.04671,1910.9,1910.5,0.00785813]
[1742141702978,21.32389214,1911.0,1910.5,1.39405813]
[1742141703282,3.2078,1910.8,1910.5,0.00785813]
[1742141703483,4.25457,1910.8,1910.6,1.04682]
[1742141703681,4.25457,1910.8,1910.7,1.04682]
[1742141703876,1.04682,1910.7,1910.6,1.04685]
[1742141704081,1.04682,1910.7,1910.5,1.05473813]
[1742141704484,1.04682,1910.7,1910.6,1.04687]
[1742141704686,14.28710749,1910.7,1910.6,1.04687]
[1742141704984,1.04703,1910.4,1910.2,1.04705]
[1742141705181,2.61788,1910.1,1909.4,3.14281]
[1742141705385,1.0476,1909.3,1909.1,2.43637]
[1742141705580,1.04764,1909.2,1909.1,1.3887]
[1742141705776,3.2078,1909.4,1908.8,3.7173]
[1742141705777,1.04763,1909.3,1908.8,3.7173]
[1742141706084,1.04788,1908.8,1908.5,1.048]
[1742141706284,1.04797,1908.6,1908.4,5.418]
[1742141706584,1.04789,1908.8,1908.5,0.00785813]
[1742141706782,7.036,1909.1,1908.5,0.00785813]
[1742141706981,7.036,1909.1,1909.0,1.04775]
[1742141706982,5.87,1909.1,1909.0,1.04775]
[1742141707182,0.00785813,1909.2,1909.1,1.04769]
[1742141707479,0.00785813,1909.2,1908.7,5.413]
[1742141707680,3.2078,1909.1,1908.6,2.18065]
[1742141707984,3.2078,1908.7,1908.6,1.04796]
[1742141708287,0.00785813,1909.2,1909.1,1.04769]
[1742141708679,0.00785813,1909.2,1908.8,5.412]
[1742141708881,3.2078,1909.0,1908.5,8.62065813]
[1742141709180,4.25563,1908.9,1908.6,1.04797]
[1742141709380,12.25436566,1908.8,1908.5,6.46084813]
[1742141709580,3.2078,1908.7,1908.5,0.00785813]
[1742141709885,8.48995,1908.6,1907.7,3.61737997]
[1742141710086,3.2078,1908.0,1907.5,3.2078]
[1742141710385,4.25601,1908.2,1907.8,1.04837]
[1742141710582,1.04824,1908.1,1907.8,1.04837]
[1742141710778,1.04824,1908.1,1907.3,11.24643]
[1742141710779,3.2078,1908.0,1907.3,8.6248]
[1742141710975,3.2078,1908.0,1907.8,1.04837]
[1742141711181,3.2078,1908.4,1908.3,1.04809]
[1742141711980,3.2078,1908.4,1908.2,1.04814]
[1742141712181,3.2078,1908.4,1907.8,5.404]
[1742141712380,3.2078,1908.4,1908.2,1.04819]
[1742141712583,3.2078,1908.4,1908.3,1.04813]
[1742141712889,3.2078,1908.4,1908.2,1.04816]
[1742141713187,3.2078,1908.4,1907.8,8.6118]
[1742141713378,3.2078,1908.4,1908.3,1.04813]
[1742141714682,0.00785813,1908.5,1908.4,1.04808]
[1742141716085,0.00785813,1908.5,1908.4,4.25588]
[1742141716289,0.00785813,1908.5,1908.4,1.04808]
[1742141716492,11.67980972,1908.8,1908.7,1.04791]
[1742141716688,11.67980972,1908.8,1908.7,9.61271]
[1742141716892,11.67980972,1908.8,1908.7,6.40491]
[1742141717091,11.67980972,1908.8,1908.7,9.61271]
[1742141717394,7.08429487,1908.8,1908.7,9.61271]
[1742141717589,7.08429487,1908.8,1908.7,1.04791]
[1742141718793,7.08429487,1908.8,1908.6,0.00785813]
[1742141719491,3.2078,1908.7,1908.6,0.00785813]
[1742141719691,4.25571,1908.7,1908.6,0.00785813]
[1742141719900,9.0778,1908.7,1908.1,8.5378]
[1742141720191,10.12574,1908.7,1908.4,1.04805]
[1742141720390,10.12574,1908.7,1908.6,1.04797]
[1742141720391,9.0778,1908.7,1908.6,1.04797]
[1742141720585,5.87,1908.7,1908.6,1.04797]
[1742141721090,11.44569487,1908.8,1908.5,0.00523877]
[1742141721091,17.31569487,1908.8,1908.5,0.00523877]
[1742141721291,4.6707,1908.6,1908.5,0.00523877]
[1742141721591,4.6707,1908.6,1908.1,1.04821]
[1742141721792,1.04815,1908.3,1907.8,3.2078]
[1742141721990,1.4629,1908.2,1908.1,1.04822]
[1742141722179,1.4629,1908.5,1908.4,1.04808]
[1742141722689,1.4629,1908.5,1908.3,1.04812]
[1742141722994,1.4629,1908.5,1908.2,2.49915]
[1742141723192,1.4629,1908.5,1908.4,1.04808]
[1742141723390,2.51095,1908.5,1908.2,1.451]
[1742141723587,3.2078,1908.4,1907.8,5.7674]
[1742141723787,3.2078,1908.2,1908.1,1.04824]
[1742141723993,3.2078,1908.2,1907.9,1.04833]
[1742141724183,1.4629,1908.1,1907.8,1.04837]
[1742141724384,2.51116,1908.1,1907.8,1.04837]
[1742141724589,4.25612,1908.0,1907.5,2.5606]
[1742141724895,1.3626,1907.9,1907.8,1.04841]
[1742141725085,1.37045813,1907.9,1907.8,1.04841]
[1742141725288,0.00785813,1907.9,1907.8,1.04841]
[1742141726487,1.37045813,1907.9,1907.8,1.04841]
[1742141727494,1.37045813,1907.9,1907.5,1.4087]
[1742141727702,3.2078,1907.8,1907.6,1.04847]
[1742141727994,3.2078,1907.8,1907.4,5.247]
[1742141727995,0.00785813,1907.9,1907.8,1.04841]
[1742141729495,8.13e-06,1907.9,1907.8,8.79041]
[1742141729797,8.13e-06,1907.9,1907.8,9.34724457]
[1742141729999,8.13e-06,1907.9,1907.8,10.73144457]
[1742141730186,8.13e-06,1907.9,1907.8,10.73187348]
[1742141730390,6.08360093,1908.5,1908.4,1.04808]
[1742141731296,13.40890093,1908.5,1907.7,4.87496348]
[1742141731500,3.2078,1908.4,1908.3,1.04808]
[1742141731698,6.08360093,1908.5,1908.4,1.04808]
[1742141731901,6.07050403,1908.5,1908.4,7.71638]
[1742141732195,0.00785813,1908.6,1908.5,1.04802]
[1742141732400,8.13e-06,1908.6,1908.5,6.24305645]
[1742141732597,11.94050403,1909.1,1909.0,1.04775]
[1742141732598,6.07050403,1909.1,1909.0,1.04775]
[1742141732897,6.07050403,1909.1,1909.0,6.28075]
[1742141733195,4.78175403,1909.1,1909.0,12.54700383]
[1742141733695,4.78175403,1909.1,1909.0,13.66980383]
[1742141733898,3.16588403,1909.1,1909.0,13.66980383]
[1742141734095,3.16588403,1909.1,1909.0,6.83920383]
[1742141734399,3.16588403,1909.1,1909.0,12.54700383]
[1742141734599,1.65983403,1909.1,1909.0,12.54700383]
[1742141734992,0.00785813,1909.2,1909.1,1.04769]
[1742141735197,8.13e-06,1909.2,1909.1,4.11704383]
[1742141735498,8.13e-06,1909.2,1909.1,6.61704383]
[1742141735796,8.13e-06,1909.2,1909.1,9.17664383]
[1742141735995,8.13e-06,1909.2,1909.1,9.17807732]
[1742141736599,8.13e-06,1909.2,1909.1,6.67807732]
[1742141736795,8.13e-06,1909.2,1909.1,9.60629772]
[1742141737404,3.2078,1910.0,1909.1,13.79707772]
[1742141737601,3.2078,1910.0,1909.9,1.04725]
[1742141737899,8.11146791,1910.1,1910.0,1.0472]
[1742141738091,8.11146791,1910.1,1910.0,2.92886115]
[1742141738492,1.04721,1910.0,1909.5,5.17]
[1742141738701,1.3748,1910.0,1909.9,0.00785813]
[1742141738905,1.3748,1910.0,1909.9,1.05510813]
[1742141739307,1.3748,1910.0,1909.9,0.00785813]
[1742141739707,1.3748,1910.0,1909.9,1.05510813]
[1742141739906,1.3748,1910.0,1909.9,0.00785813]
[1742141740103,1.3748,1910.0,1909.9,1.05510813]
[1742141740305,1.3748,1910.0,1909.9,0.00785813]
[1742141740801,2.422,1910.0,1909.9,0.00785813]
[1742141741002,1.3748,1910.0,1909.4,7.25625]
[1742141741200,3.2078,1909.9,1909.8,1.04731]
[1742141741400,1.3748,1910.0,1909.9,1.04725]
[1742141745712,4.5826,1910.0,1909.8,0.00785813]
[1742141745910,1.3748,1910.0,1909.8,1.05513813]
[1742141746111,4.5826,1910.0,1909.8,0.00785813]
[1742141746311,4.5826,1910.0,1909.8,1.05514813]
[1742141746709,4.5826,1910.0,1909.9,1.04725]
[1742141747212,4.5826,1910.0,1909.8,0.00785813]
[1742141747213,0.00785813,1910.2,1910.1,1.04714]
[1742141747405,0.00785813,1910.2,1909.9,6.4239]
[1742141747602,5.87785813,1910.2,1909.8,0.00785813]
[1742141747805,4.25498,1910.1,1909.8,1.05515813]
[1742141748012,1.4673,1910.0,1909.8,1.05515813]
[1742141748211,1.4673,1910.0,1909.8,0.00785813]
[1742141748410,3.2078,1909.9,1909.8,0.00785813]
[1742141748615,3.2078,1909.9,1909.4,3.2078]
[1742141748616,3.2078,1909.9,1909.7,1.04736]
[1742141748819,1.3309,1909.8,1909.7,1.04736]
[1742141749810,1.3309,1909.8,1909.6,0.00785813]
[1742141750114,1.3309,1909.8,1909.6,1.05527813]
[1742141750115,3.2078,1909.7,1909.6,1.05527813]
[1742141750416,7.2009,1909.8,1909.7,1.04736]
[1742141751304,14.48913489,1910.0,1909.9,1.04725]
[1742141751509,15.82003489,1910.0,1909.9,1.04725]
[1742141751716,15.82003489,1910.0,1909.8,1.04727]
[1742141751906,16.86725489,1910.0,1909.7,1.04733]
[1742141752110,15.82003489,1910.0,1909.9,1.04725]
[1742141753815,24.19003489,1910.0,1909.6,0.00785813]
[1742141754009,3.2078,1909.9,1909.8,1.04731]
[1742141754220,4.5513,1909.9,1909.7,1.04735]
[1742141754406,4.5513,1909.9,1909.7,1.04736]
[1742141754605,4.5513,1909.9,1909.8,1.04731]
[1742141755515,5.59857,1909.9,1909.6,0.00785813]
[1742141755716,4.5513,1909.9,1909.6,0.00785813]
[1742141755913,4.5513,1909.9,1909.8,1.04731]
[1742141756323,4.5513,1909.9,1909.7,1.04734]
[1742141756614,4.5513,1909.9,1909.8,1.04731]
[1742141757614,1.3435,1909.9,1909.8,1.04731]
[1742141761124,1.3435,1909.9,1909.8,1.609033]
[1742141761527,1.3435,1909.9,1909.6,0.00785813]
[1742141761717,4.25513,1909.8,1909.6,1.05526813]
[1742141761912,4.25513,1909.8,1909.0,29.035]
[1742141761913,7.2523,1909.7,1909.0,3.2078]
[1742141762122,13.43755,1909.6,1909.1,0.56283113]
[1742141762320,3.2078,1909.2,1909.1,1.04769]
[1742141762522,3.2078,1909.2,1909.1,1.61125553]
[1742141762722,1.3823,1909.5,1909.4,1.04753]
[1742141763026,1.3823,1909.5,1909.4,1.61098924]
[1742141763421,3.2078,1909.6,1909.5,1.04747]
[1742141763622,10.13933489,1909.7,1909.6,1.04742]
[1742141763822,3.2078,1910.0,1909.9,1.04725]
[1742141764019,3.2078,1910.0,1909.9,1.61070924]
[1742141764221,0.00785813,1910.2,1910.1,1.04714]
[1742141764415,0.00785813,1910.2,1910.1,6.54459924]
[1742141764618,0.00785813,1910.2,1910.1,6.54414098]
[1742141764820,1.43385813,1910.2,1910.1,1.61014098]
[1742141765223,0.00785813,1910.2,1910.1,1.61014098]
[1742141765914,12.13535542,1910.3,1910.2,1.04709]
[1742141765915,7.21535221,1910.3,1910.2,1.04709]
[1742141766118,7.21535221,1910.3,1910.2,6.16149098]
[1742141766432,4.50195221,1910.3,1910.2,8.66149098]
[1742141766721,40.59723966,1910.4,1910.2,8.66149098]
[1742141766722,40.59723966,1910.4,1910.3,1.04703]
[1742141766914,27.0494491,1910.4,1910.3,6.52601492]
[1742141767120,0.00785813,1910.5,1910.4,1.04698]
[1742141767321,16.33748942,1910.7,1910.6,1.04687]
[1742141767533,16.33748942,1910.7,1910.6,4.81665492]
[1742141767833,15.10048942,1910.7,1910.6,4.81665492]
[1742141768025,15.10048942,1910.7,1910.6,7.31665492]
[1742141768230,12.19830942,1910.7,1910.6,7.31665492]
[1742141768527,17.40664226,1910.8,1910.7,1.04682]
[1742141768727,17.40664226,1910.8,1910.7,7.93150492]
[1742141768927,5.75918301,1910.9,1910.8,1.04676]
[1742141769122,22.40435318,1911.5,1911.4,1.04643]
[1742141769727,22.40435318,1911.5,1911.4,1.60584925]
[1742141770525,22.40435318,1911.5,1911.4,1.04643]
[1742141770725,0.00785813,1911.6,1911.5,1.04638]
[1742141771022,0.00785813,1911.6,1911.5,1.60485558]
[1742141771422,0.00785813,1911.6,1911.5,3.54638]
[1742141771626,0.00785813,1911.6,1911.5,1.04638]
[1742141772228,0.00785813,1911.6,1911.5,1.60411866]
[1742141772428,0.00785813,1911.6,1911.4,4.25421]
[1742141772628,0.00785813,1911.6,1911.3,0.00785813]
[1742141772835,1.17535813,1911.6,1911.3,1.05433813]
[1742141773029,1.17535813,1911.6,1911.5,1.04638]
[1742141773625,0.00785813,1911.6,1911.5,1.04638]
[1742141775032,0.00785813,1911.6,1911.5,2.37118]
[1742141776632,8.13e-06,1911.6,1911.5,4.87118]
[1742141777336,5.87,1912.2,1912.1,1.04605]
[1742141777534,1.1155,1912.4,1912.2,1.04595]
[1742141778133,1.1155,1912.4,1912.3,1.04594]
[1742141778330,1.1155,1912.4,1912.0,8.0208]
[1742141778530,1.1155,1912.4,1912.3,1.04594]
[1742141778925,1.1155,1912.4,1912.2,1.04596]
[1742141779337,1.1155,1912.4,1912.0,3.2078]
[1742141779537,0.00785813,1912.5,1912.4,1.04588]
[1742141779836,0.00785813,1912.5,1912.2,4.25377]
[1742141780037,0.00785813,1912.5,1912.3,0.00785813]
[1742141780238,1.05368813,1912.5,1912.3,0.00785813]
[1742141780434,1.04588,1912.4,1912.3,0.00785813]
[1742141780638,1.04596,1912.3,1911.9,4.793]
[1742141780843,5.87,1912.3,1911.8,3.2078]
[1742141781042,1.04608,1912.1,1911.7,5.84224]
[1742141781540,1.04645,1911.4,1911.0,4.81153037]
[1742141781730,1.04645,1911.4,1910.6,5.57263832]
[1742141781731,1.3883,1911.3,1911.1,1.04656]
[1742141782036,6.9752,1912.0,1911.3,2.61615]
[1742141782230,1.4547,1911.9,1911.8,1.04621]
[1742141782431,1.4547,1911.9,1911.6,9.05209]
[1742141782639,1.4547,1911.9,1911.6,8.0058]
[1742141782938,1.4547,1911.9,1911.8,4.25401]
[1742141783242,0.00785813,1912.0,1911.9,1.04616]
[1742141783539,0.00785813,1912.0,1911.9,2.38146]
[1742141784242,0.00785813,1912.0,1911.9,1.04616]
[1742141785845,0.00785813,1912.0,1911.9,2.44936]
[1742141786233,5.87,1912.6,1911.9,2.44936]
[1742141786234,5.87,1912.6,1912.5,1.04583]
[1742141786434,1.4649,1912.7,1912.6,1.04578]
[1742141786941,1.4649,1912.7,1912.6,4.25358]
[1742141787136,3.2078,1913.3,1912.6,4.25358]
[1742141787137,1.1573,1913.3,1912.6,5.7078]
[1742141787332,1.4649,1913.2,1913.1,1.04546]
[1742141787538,9.57,1913.7,1913.1,1.04546]
[1742141787539,3.2078,1913.8,1913.1,0.42334626]
[1742141787738,1.4649,1913.7,1913.6,1.04523]
[1742141788945,1.4649,1913.7,1913.6,4.25303]
[1742141789146,0.00785813,1913.8,1913.7,1.04517]
[1742141790238,2.61338,1913.4,1912.1,3.2078]
[1742141790441,3.2078,1912.8,1912.5,1.0458]
[1742141790630,3.2078,1912.8,1912.7,1.04572]
[1742141790835,1.332,1913.2,1913.1,1.0455]
[1742141791045,8.52561304,1913.6,1913.2,1.04545]
[1742141791247,8.52561304,1913.6,1913.1,5.016]
[1742141791248,1.3874,1913.5,1913.4,1.04534]
[1742141791739,0.00785813,1913.6,1913.5,1.04528]
[1742141791941,5.31781304,1915.0,1914.2,3.2078]
[1742141792147,3.2078,1915.9,1914.9,3.2078]
[1742141792148,5.31781304,1915.8,1914.9,3.2078]
[1742141792336,5.31781304,1915.7,1915.0,9.7095]
[1742141792533,5.31781304,1915.7,1915.1,3.2078]
[1742141792738,3.2078,1915.6,1915.0,6.5017]
[1742141793033,0.0078372,1915.5,1915.1,0.0078372]
[1742141794041,0.0078372,1915.5,1915.1,1.4455372]
[1742141794245,0.0078372,1915.5,1915.4,3.2078]
[1742141794443,3.2078,1916.0,1915.7,1.04408]
[1742141794633,3.2078,1916.0,1915.8,6.10203]
[1742141794839,6.39751304,1916.2,1915.8,5.058]
[1742141795139,1.3716,1915.9,1915.8,5.058]
[1742141795440,1.04403,1915.8,1915.5,8.2648]
[1742141795637,1.3716,1915.7,1915.4,8.2738]
[1742141795837,1.3716,1915.7,1915.5,1.4151]
[1742141796139,1.3716,1915.7,1915.4,8.2738]
[1742141796340,1.3716,1915.7,1915.6,3.2078]
[1742141796743,1.3716,1915.7,1915.2,4.6229]
[1742141796936,1.3716,1915.7,1915.2,3.2078]
[1742141797137,1.3716,1915.7,1915.4,3.2078]
[1742141797539,1.3716,1915.7,1915.4,4.25204]
[1742141797740,1.3716,1915.7,1915.2,4.5994]
[1742141798042,1.3716,1915.7,1915.6,4.25194]
[1742141798236,5.085,1916.4,1915.6,4.25194]
[1742141798237,5.31781304,1917.1,1916.0,3.2078]
[1742141798434,1.4052,1916.9,1916.8,3.2078]
[1742141798947,1.4052,1916.9,1916.6,5.183]
[1742141799141,1.4052,1916.9,1916.7,3.2078]
[1742141799650,1.4052,1916.9,1916.6,5.1908372]
[1742141800050,1.4052,1916.9,1916.6,8.3986372]
[1742141800243,1.4052,1916.9,1916.6,0.0078372]
[1742141800437,1.04351,1916.8,1916.6,0.0078372]
[1742141800642,1.4062,1916.7,1916.6,0.0078372]
[1742141801047,0.00521083,1917.0,1916.6,8.4236372]
[1742141801251,0.00521083,1917.0,1916.9,3.2078]
[1742141801738,0.00521083,1917.0,1916.9,4.25123]
[1742141801950,0.00521083,1917.0,1916.6,5.2158372]
[1742141802142,0.00521083,1917.0,1916.7,3.2078]
[1742141802350,0.00521083,1917.0,1916.6,5.2158372]
[1742141802653,1.4062,1917.3,1917.1,1.04328]
[1742141802843,1.4062,1917.3,1916.8,3.2078]
[1742141803041,1.4062,1917.3,1917.0,3.2078]
[1742141803243,1.4062,1917.3,1917.2,3.2078]
[1742141803451,1.04302,1917.7,1917.2,3.2078]
[1742141803754,1.3884,1917.7,1917.6,3.2078]
[1742141804147,3.2078,1918.2,1917.6,3.2078]
[1742141804337,1.3884,1918.4,1917.8,3.2078]
[1742141804545,5.31781304,1918.8,1918.0,3.2078]
[1742141804759,4.5962,1918.7,1918.0,3.2078]
[1742141804943,1.04267,1918.3,1918.0,3.2078]
[1742141805247,1.3884,1918.2,1917.9,0.0078372]
[1742141805453,1.04283,1918.0,1917.9,0.0078372]
[1742141805754,8.52561304,1918.0,1917.1,4.2511]
[1742141805948,1.04296,1917.8,1917.1,4.6322]
[1742141806149,1.3884,1917.7,1917.1,8.4168]
[1742141806351,1.04313,1917.5,1917.1,8.4168]
[1742141806540,1.3771,1917.4,1917.1,9.46009]
[1742141806849,2.4203,1917.4,1917.1,5.2168372]
[1742141807054,1.3771,1917.4,1917.2,1.04323]
[1742141807251,1.3771,1917.4,1917.3,4.25101]
[1742141807449,5.5502372,1918.1,1917.3,3.2078]
[1742141807754,1.04327,1917.2,1917.1,0.0078372]
[1742141808146,1.3771,1917.6,1917.1,0.0078372]
[1742141808346,6.69491304,1917.6,1917.1,0.0078372]
[1742141808548,1.04327,1917.2,1917.1,0.0078372]
[1742141808746,1.04346,1916.9,1916.5,3.2078]
[1742141808950,1.3771,1916.8,1916.5,3.2078]
[1742141809254,9.19491304,1916.8,1916.2,3.2078]
[1742141809464,9.19491304,1916.8,1915.4,2.61053]
[1742141809465,3.2078,1916.4,1915.6,3.2078]
[1742141809748,3.2078,1916.1,1915.5,1.4248]
[1742141809954,1.04419,1915.5,1915.4,3.2078]
[1742141810156,1.4045,1916.0,1915.4,3.2078]
[1742141810349,0.0078372,1916.2,1915.6,0.0078372]
[1742141810545,1.4045,1915.9,1915.8,1.044]
[1742141810746,1.4045,1915.9,1915.7,1.04405]
[1742141810946,1.4045,1915.9,1915.6,0.0078372]
[1742141810947,1.4045,1915.9,1915.6,1.0519472]
[1742141811143,3.9045,1915.9,1915.6,0.0078372]
[1742141811446,3.2078,1915.7,1915.3,3.2078]
[1742141811645,1.4045,1915.6,1915.1,4.25219]
[1742141811850,1.04436,1915.2,1915.1,3.2078]
[1742141812151,1.04461,1914.8,1914.5,3.2078]
[1742141812346,4.01556,1915.1,1914.3,3.2078]
[1742141812546,4.01556,1915.1,1914.1,1.4685]
[1742141812547,1.3555,1914.7,1914.1,1.4685]
[1742141812758,1.04485,1914.3,1914.1,1.4685]
[1742141812964,1.3555,1914.7,1914.0,3.2078]
[1742141812965,1.3555,1914.2,1914.0,3.2078]
[1742141813150,1.3555,1914.2,1914.0,4.2606072]
[1742141813455,1.3555,1914.2,1914.0,3.2156372]
[1742141813656,1.04468,1914.6,1914.1,1.04491]
[1742141813855,1.3555,1914.6,1914.5,1.04474]
[1742141814055,1.3555,1914.6,1914.4,3.2078]
[1742141814357,1.04474,1914.5,1914.4,3.2078]
[1742141814652,1.3555,1914.6,1914.0,0.0078372]
[1742141814854,1.3555,1914.4,1914.0,0.0078372]
[1742141815057,1.04488,1914.3,1914.0,0.0078372]
[1742141815354,5.266,1914.8,1914.0,0.0078372]
[1742141815355,1.04496,1914.1,1914.0,0.0078372]
[1742141815947,3.54496,1914.1,1913.5,1.04525]
[1742141816156,4.3809,1914.3,1913.4,3.2078]
[1742141816157,1.04508,1913.9,1913.4,3.2078]
[1742141816353,1.463,1913.8,1913.4,3.2078]
[1742141816654,1.1731,1914.3,1913.7,3.2078]
[1742141816855,1.463,1914.2,1913.9,3.2078]
[1742141817250,1.463,1914.2,1913.8,1.3909]
[1742141817251,3.2078,1914.1,1913.7,3.2078]
[1742141817458,1.04509,1913.9,1913.5,3.2078]
[1742141817752,2.50815,1913.8,1913.7,0.0078372]
[1742141818159,1.463,1913.8,1913.7,0.0078372]
[1742141818462,2.50812,1913.8,1913.7,0.0078372]
[1742141819355,1.463,1913.8,1913.7,0.0078372]
[1742141819947,1.463,1913.8,1913.7,3.2156372]
[1742141820154,3.2156372,1914.2,1913.7,0.0078372]
[1742141820364,2.4481672,1914.2,1913.8,3.2078]
[1742141820559,1.4032372,1914.2,1914.0,3.2078]
[1742141820863,1.4032372,1914.2,1913.7,0.0078372]
[1742141821059,1.4032372,1914.2,1913.7,1.0530072]
[1742141821356,1.4032372,1914.2,1913.7,0.0078372]
[1742141821357,1.04499,1914.1,1913.7,0.0078372]
[1742141821549,1.4357,1914.0,1913.8,3.2078]
[1742141821754,6.36252304,1914.6,1913.8,3.2078]
[1742141821954,1.4357,1914.5,1914.3,3.2078]
[1742141822149,15.231,1915.3,1914.3,3.2078]
[1742141822360,15.231,1915.3,1914.5,3.2078]
[1742141822361,1.0446,1914.8,1914.5,3.2078]
[1742141822555,9.97,1915.3,1914.7,3.2078]
[1742141822854,1.04455,1914.9,1914.7,3.2078]
[1742141823159,0.0078372,1915.0,1914.7,3.2078]
[1742141823349,1.04452,1914.9,1914.8,1.4631]
[1742141823550,0.0078372,1915.0,1914.8,1.4631]
[1742141823750,0.0078372,1915.0,1914.9,4.25232]
[1742141823954,5.87,1915.8,1914.9,3.2078]
[1742141824148,11.113,1915.9,1915.5,3.2078]
[1742141824356,1.0441,1915.7,1915.5,3.2078]
[1742141824556,11.113,1915.9,1915.5,3.2078]
[1742141824557,1.04407,1915.8,1915.5,3.2078]
[1742141824754,1.1353,1916.0,1915.7,3.2078]
[1742141824962,1.1353,1916.0,1915.9,3.2078]
[1742141824963,2.17922,1916.0,1915.9,3.2078]
[1742141825257,5.227,1916.6,1915.9,3.2078]
[1742141825457,1.425,1916.5,1916.1,3.2078]
[1742141825856,0.0078372,1916.4,1916.3,3.2078]
[1742141826058,0.0078372,1916.4,1916.3,4.25156]
[1742141826459,1.04376,1916.3,1916.2,1.325]
[1742141826654,0.0078372,1916.4,1916.1,3.2078]
[1742141826863,0.0078372,1916.4,1916.3,3.2078]
[1742141827265,0.0078372,1916.4,1916.2,1.325]
[1742141827461,1.425,1916.8,1916.3,8.4118]
[1742141827660,1.0434,1917.0,1916.7,3.2078]
[1742141827856,1.04343,1916.9,1916.8,1.3888]
[1742141828167,1.341,1917.2,1916.5,3.2078]
[1742141828354,1.0437,1916.4,1916.3,3.2078]
[1742141828659,1.04367,1916.5,1916.3,3.2078]
[1742141828863,0.0078372,1916.5,1916.2,0.0078372]
[1742141829059,1.04376,1916.3,1916.2,0.0078372]
[1742141829259,0.0078372,1916.5,1916.2,0.0078372]
[1742141829464,0.0078372,1916.5,1916.2,3.2156372]
[1742141829759,0.0078372,1916.5,1916.2,0.0078372]
[1742141829760,1.04376,1916.3,1916.2,0.0078372]
[1742141829958,1.04407,1915.8,1915.4,3.2078]
[1742141830155,1.04411,1915.7,1915.4,4.5966]
[1742141830363,1.04414,1915.6,1915.4,4.5966]
[1742141830665,5.87,1916.0,1915.4,3.2078]
[1742141830873,1.4677,1915.9,1915.4,3.2078]
[1742141831166,1.0443,1915.3,1915.2,4.5545]
[1742141831371,5.87,1915.7,1915.2,4.5545]
[1742141831664,2.51186,1915.6,1915.5,0.0078372]
[1742141831964,1.0519772,1915.6,1915.5,0.0078372]
[1742141832157,0.0078372,1915.6,1915.5,3.2156372]
[1742141832565,1.0519772,1915.6,1915.5,0.0078372]
[1742141832965,1.0519772,1915.6,1915.5,3.2156372]
[1742141832966,0.0078372,1915.6,1915.5,3.2156372]
[1742141833263,0.0078372,1915.6,1915.5,0.0078372]
[1742141833264,1.0519772,1915.6,1915.5,0.0078372]
[1742141833954,0.0078372,1915.6,1915.5,0.0078372]
[1742141834156,0.0078372,1915.6,1915.5,3.2156372]
[1742141834352,0.0078372,1915.6,1915.5,4.2598272]
[1742141834557,0.0078372,1915.6,1915.5,3.2156372]
[1742141834853,1.04389,1916.1,1915.6,1.0441]
[1742141835052,2.40043,1916.2,1916.0,3.2078]
[1742141835254,1.1925,1916.7,1916.3,1.04375]
[1742141835461,1.3566,1916.8,1916.4,3.2078]
[1742141835657,1.04365,1916.5,1916.4,3.2078]